{"text_format":"1","workbook":"xlsx","n_sheets":1,"sheets":["Jungwaldpflege"],"not_rendered":{"charts":0,"images":0,"macros":1,"external_links":0,"defined_names":0,"comments":0,"pivot_tables":0},"unopened":[],"bounds":{"document_bytes":16777216,"sheet_cells":100000,"rows_first":2000,"rows_last":500,"rows_between":2000,"halvings":0,"cell_chars":16384,"cell_head_chars":4096},"cells_cut":0,"cells_raw":0,"read":"whole","date_system":"1900"}

{"sheet":"Jungwaldpflege","index":0,"n_rows":158,"n_cols":43,"rows_kept":158,"cut":false,"hidden":false,"merged":[[143,1,144,15],[143,16,144,28],[89,26,90,29],[142,31,143,44],[65,42,66,45],[89,42,90,45],[87,1,88,22],[85,38,86,41],[77,5,78,5],[77,6,78,9],[79,11,80,16],[77,10,78,22],[73,1,74,22],[65,34,66,37],[77,30,78,33],[77,42,78,45],[79,26,80,29],[83,30,84,33],[79,6,80,6],[79,7,80,7],[79,8,80,8],[79,9,80,9],[79,10,80,10],[89,1,90,22],[91,23,92,25],[91,1,92,22],[93,26,95,29],[93,1,95,22],[91,26,92,29],[93,23,95,25],[89,30,90,33],[89,34,90,37],[79,1,80,4],[79,5,80,5],[81,30,82,33],[85,1,86,22],[85,34,86,37],[89,23,90,25],[87,34,88,37],[83,1,84,5],[83,6,84,6],[83,7,84,7],[83,8,84,13],[83,14,84,14],[83,15,84,22],[155,35,158,44],[145,41,146,44],[155,30,156,34],[145,12,147,15],[145,16,147,24],[145,25,147,28],[155,1,156,7],[145,36,146,40],[157,1,158,7],[155,8,158,26],[148,21,149,26],[145,1,147,11],[150,31,152,35],[150,36,152,40],[147,31,149,35],[147,36,149,40],[147,41,149,44],[150,1,152,10],[150,11,152,20],[150,21,152,29],[148,1,149,5],[148,11,149,15],[140,0,141,0],[140,1,141,28],[140,31,141,31],[135,1,137,10],[135,11,137,20],[135,21,137,32],[122,21,123,26],[129,0,130,0],[129,1,130,45],[124,1,126,10],[124,11,126,20],[124,21,126,32],[125,34,126,38],[133,21,134,26],[131,1,132,29],[133,34,134,39],[122,1,123,5],[122,11,123,15],[136,39,137,39],[133,1,134,5],[133,11,134,15],[140,32,141,42],[114,0,115,0],[114,1,115,32],[57,1,58,22],[61,26,62,29],[61,1,62,22],[81,1,82,22],[87,26,88,29],[87,30,88,33],[77,1,78,4],[97,0,98,0],[97,1,98,45],[100,34,101,38],[100,40,101,44],[102,34,104,39],[102,40,104,44],[106,34,107,44],[108,34,111,44],[99,1,100,33],[102,1,112,33],[57,26,58,29],[93,34,95,37],[93,30,95,33],[63,1,64,22],[65,23,66,25],[43,1,47,22],[55,10,56,10],[55,17,56,22],[55,11,56,16],[53,10,54,22],[51,1,52,22],[136,34,137,38],[122,34,123,39],[125,39,126,39],[114,34,115,44],[116,1,121,32],[116,34,117,45],[118,34,120,44],[93,42,95,45],[93,38,95,41],[91,34,92,37],[91,38,92,41],[85,26,86,29],[85,23,86,25],[89,38,90,41],[91,42,92,45],[91,30,92,33],[37,1,38,9],[49,1,50,19],[53,1,54,4],[53,5,54,5],[53,6,54,9],[36,21,38,26],[53,23,54,25],[57,23,58,25],[59,23,60,25],[37,13,38,13],[53,26,54,29],[59,1,60,5],[59,6,60,6],[59,7,60,7],[59,8,60,13],[59,14,60,14],[59,15,60,22],[0,17,3,28],[11,18,13,28],[11,29,13,33],[18,7,21,20],[18,22,21,25],[0,29,1,45],[2,29,3,45],[4,0,4,45],[0,0,3,16],[18,1,21,6],[18,42,19,45],[20,42,21,45],[18,26,21,38],[18,41,19,41],[20,41,21,41],[5,0,7,25],[8,0,9,25],[10,0,10,45],[14,0,14,45],[16,0,17,0],[16,1,17,45],[32,1,33,10],[32,37,34,37],[32,38,34,44],[32,29,34,29],[11,34,13,45],[11,14,13,17],[11,10,13,13],[28,41,29,41],[22,41,23,41],[24,41,25,41],[24,42,25,45],[34,13,35,13],[11,0,13,1],[11,2,13,6],[22,7,25,20],[26,7,29,20],[11,7,13,9],[22,1,25,6],[26,1,29,6],[32,0,33,0],[22,26,25,38],[34,1,35,9],[41,0,42,0],[41,1,42,19],[65,38,66,41],[53,38,54,41],[57,38,58,41],[57,34,58,37],[59,34,60,37],[61,34,62,37],[48,38,49,45],[59,38,60,41],[61,38,62,41],[50,34,52,37],[50,38,52,41],[55,1,56,4],[55,5,56,5],[50,42,52,45],[48,30,49,37],[50,30,52,33],[55,7,56,7],[55,6,56,6],[55,9,56,9],[55,8,56,8],[49,0,50,0],[65,1,66,22],[53,42,54,45],[57,42,58,45],[59,42,60,45],[55,26,56,29],[55,30,56,33],[55,34,56,37],[55,38,56,41],[55,42,56,45],[22,22,25,25],[28,22,29,39],[22,42,23,45],[32,30,34,36],[32,21,34,28],[36,31,38,36],[36,37,38,44],[36,27,38,30],[41,24,42,31],[48,23,52,25],[48,26,52,29],[43,24,47,45],[63,23,64,25],[63,26,64,29],[65,30,66,33],[53,30,54,33],[57,30,58,33],[59,30,60,33],[61,30,62,33],[63,30,64,33],[63,34,64,37],[53,34,54,37],[59,26,60,29],[61,23,62,25],[65,26,66,29],[55,23,56,25],[87,38,88,41],[87,42,88,45],[77,34,78,37],[77,23,78,25],[87,23,88,25],[85,30,86,33],[79,38,80,41],[79,42,80,45],[83,34,84,37],[81,34,82,37],[81,23,82,25],[81,26,82,29],[83,26,84,29],[83,23,84,25],[81,38,82,41],[83,38,84,41],[81,42,82,45],[83,42,84,45],[85,42,86,45],[73,26,74,29],[79,30,80,33],[79,34,80,37],[73,30,74,33],[73,34,74,37],[69,23,70,25],[71,23,72,25],[75,1,76,45],[77,26,78,29],[77,38,78,41],[63,38,64,41],[63,42,64,45],[61,42,62,45],[79,17,80,22],[79,23,80,25],[73,38,74,41],[73,42,74,45],[67,1,68,45],[5,26,7,34],[5,35,7,45],[8,26,9,45],[69,30,70,33],[69,34,70,37],[69,38,70,41],[69,42,70,45],[71,30,72,33],[71,34,72,37],[71,38,72,41],[71,42,72,45],[69,1,70,22],[71,1,72,22],[73,23,74,25],[69,26,70,29],[71,26,72,29]]}
["Amt für Wald\nund Naturgefahren",null,null,null,null,null,null,null,null,null,null,null,null,null,null,null,null,"Beilage 1a",null,null,null,null,null,null,null,null,null,null,null,"Jungwaldpflege im GSW und übrigen Wald, KS 6.1/6"]
[]
[null,null,null,null,null,null,null,null,null,null,null,null,null,null,null,null,null,null,null,null,null,null,null,null,null,null,null,null,null,"Version 22/1"]
[]
[]
["Einfaches Projekt: Jungwaldpflege",null,null,null,null,null,null,null,null,null,null,null,null,null,null,null,null,null,null,null,null,null,null,null,null,null,null,null,null,null,null,null,null,null,null,"GIS-ID:"]
[]
[]
["Beitragsgesuch/-abrechnung"]
[]
[]
["WA",null,null,null,null,null,null,"Revier ",null,null,null,null,null,null,"Gemeinde ",null,null,null,null,null,null,null,null,null,null,null,null,null,null,"Lokalname "]
[]
[]
[]
[]
[1,"Angaben über Trägerschaft"]
[]
[null,"Name / Vorname",null,null,null,null,null,null,null,null,null,null,null,null,null,null,null,null,null,null,null,null,"zu Handen",null,null,null,null,null,null,null,null,null,null,null,null,null,null,null,null,null,null,null,"  öffentlich"]
[]
[null,null,null,null,null,null,null,null,null,null,null,null,null,null,null,null,null,null,null,null,null,null,null,null,null,null,null,null,null,null,null,null,null,null,null,null,null,null,null,null,null,null,"  privat"]
[]
[null,"Strasse",null,null,null,null,null,null,null,null,null,null,null,null,null,null,null,null,null,null,null,null,"PLZ / Ort",null,null,null,null,null,null,null,null,null,null,null,null,null,null,null,null,null,null,null,"  SFB / TBA"]
[]
[null,null,null,null,null,null,null,null,null,null,null,null,null,null,null,null,null,null,null,null,null,null,null,null,null,null,null,null,null,null,null,null,null,null,null,null,null,null,null,null,null,null,"  Bund"]
[]
[null,"Postfach"]
[]
[null,null,null,null,null,null,null,null,null,null,null,null,null,null,null,null,null,null,null,null,null,null,"Einzahlungsschein der Trägerschaft liegt bei"]
[]
[]
[]
[2,"Lokalisierung der Flächen",null,null,null,null,null,null,null,null,null,null,null,null,null,null,null,null,null,null,null,"Mittelpunktkoordinaten  ",null,null,null,null,null,null,null,"x",null,null,null,null,null,null,null,"y"]
[]
[null,"übriger Wald "]
[]
[null,null,null,null,null,null,null,null,null,null,null,null,null,null,null,null,null,null,null,null,null,"Anzahl Flächen  ",null,null,null,null,null,null,null,null,null,"Höhe über Meer  "]
[null,"GSW (NaiS Formular beilegen)",null,null,null,null,null,null,null,null,null,null,null,null,null,null,null,null,null,null,"  "]
[]
[]
[]
[3,"Zielsetzung (auf Grund des vereinfachten Standortschlüssels)",null,null,null,null,null,null,null,null,null,null,null,null,null,null,null,null,null,null,null,null,null,null,"Massnahmen"]
[]
[]
[]
[]
[]
[]
[null,null,null,null,null,null,null,null,null,null,null,null,null,null,null,null,null,null,null,null,null,null,null,"Einheit",null,null,"Pauschale\nCHF",null,null,null,"Voranschlag",null,null,null,null,null,null,null,"Abrechnung"]
[4,"Voranschlag / Abrechnung"]
[null,null,null,null,null,null,null,null,null,null,null,null,null,null,null,null,null,null,null,null,null,null,null,null,null,null,null,null,null,null,"Anzahl",null,null,null,"Beitrag",null,null,null,"Anzahl",null,null,null,"Beitrag"]
[null,"übriger Wald"]
[]
[null,"Austrichtern",null,null,null,"o","Ersteingriff",null,null,null,null,null,null,null,null,null,null,null,null,null,null,null,null,"ha",null,null,720,null,null,null,null,null,null,null,{"$f":"ROUND(AA54*AE54*2,1)/2","v":0},null,null,null,null,null,null,null,{"$f":"ROUND(AA54*AM54*2,1)/2","v":0}]
[]
[null,"Austrichtern",null,null,null,"o","1.","o","2.","o","3.","Folgeeingriff",null,null,null,null,null,null,null,null,null,null,null,"ha",null,null,720,null,null,null,null,null,null,null,{"$f":"ROUND(AA56*AE56*2,1)/2","v":0},null,null,null,null,null,null,null,{"$f":"ROUND(AA56*AM56*2,1)/2","v":0}]
[]
[null,"Jungwuchspflege",null,null,null,null,null,null,null,null,null,null,null,null,null,null,null,null,null,null,null,null,null,"ha",null,null,1450,null,null,null,null,null,null,null,{"$f":"ROUND(AA58*AE58*2,1)/2","v":0},null,null,null,null,null,null,null,{"$f":"ROUND(AA58*AM58*2,1)/2","v":0}]
[]
[null,"Dickungspflege",null,null,null,null,"o",null,"Stangenholzpflege",null,null,null,null,null,"o",null,null,null,null,null,null,null,null,"ha",null,null,1450,null,null,null,null,null,null,null,{"$f":"ROUND(AA60*AE60*2,1)/2","v":0},null,null,null,null,null,null,null,{"$f":"ROUND(AA60*AM60*2,1)/2","v":0}]
[]
[null,"Pflege stufige Bestände",null,null,null,null,null,null,null,null,null,null,null,null,null,null,null,null,null,null,null,null,null,"ha",null,null,1450,null,null,null,null,null,null,null,{"$f":"ROUND(AA62*AE62*2,1)/2","v":0},null,null,null,null,null,null,null,{"$f":"ROUND(AA62*AM62*2,1)/2","v":0}]
[]
[null,"Schlagpflege (max. 50 % der Schlagfläche)",null,null,null,null,null,null,null,null,null,null,null,null,null,null,null,null,null,null,null,null,null,"ha",null,null,1450,null,null,null,null,null,null,null,{"$f":"ROUND(AA64*AE64*2,1)/2","v":0},null,null,null,null,null,null,null,{"$f":"ROUND(AA64*AM64*2,1)/2","v":0}]
[]
[null,"Stumpen (1.5 a pro Baum)",null,null,null,null,null,null,null,null,null,null,null,null,null,null,null,null,null,null,null,null,null,"ha",null,null,1600,null,null,null,null,null,null,null,{"$f":"ROUND(AA66*AE66*2,1)/2","v":0},null,null,null,null,null,null,null,{"$f":"ROUND(AA66*AM66*2,1)/2","v":0}]
[]
[null,"Schaffung und Pflege von Flächen mit besonderen Baumarten (Beilage 5)"]
[]
[null,"Anlagen von Eichen (Naturverjüngung oder Kultur) inkl. Wildschutz",null,null,null,null,null,null,null,null,null,null,null,null,null,null,null,null,null,null,null,null,null,"ha",null,null,12000,null,null,null,null,null,null,null,{"$f":"ROUND(AA70*AE70*2,1)/2","v":0},null,null,null,null,null,null,null,{"$f":"ROUND(AA70*AM70*2,1)/2","v":0}]
[]
[null,"Setzen und Schützen von prioritären Baumarten, 6 Stück = 1 Are",null,null,null,null,null,null,null,null,null,null,null,null,null,null,null,null,null,null,null,null,null,"ha",null,null,10000,null,null,null,null,null,null,null,{"$f":"ROUND(AA72*AE72*2,1)/2","v":0},null,null,null,null,null,null,null,{"$f":"ROUND(AA72*AM72*2,1)/2","v":0}]
[]
[null,"Pflege dieser Baumarten (max. 4 Eingriffe)",null,null,null,null,null,null,null,null,null,null,null,null,null,null,null,null,null,null,null,null,null,"ha",null,null,2000,null,null,null,null,null,null,null,{"$f":"ROUND(AA74*AE74*2,1)/2","v":0},null,null,null,null,null,null,null,{"$f":"ROUND(AA74*AM74*2,1)/2","v":0}]
[]
[null,"Gerinneschutzwald (GSW); als Beilage: Projektgrundlage mit NaiS"]
[]
[null,"Austrichtern",null,null,null,"o","Ersteingriff",null,null,null,null,null,null,null,null,null,null,null,null,null,null,null,null,"ha",null,null,1000,null,null,null,null,null,null,null,{"$f":"ROUND(AA78*AE78*2,1)/2","v":0},null,null,null,null,null,null,null,{"$f":"ROUND(AM78*AA78*2,1)/2","v":0}]
[]
[null,"Austrichtern",null,null,null,"o","1.","o","2.","o","3.","Folgeeingriff",null,null,null,null,null,null,null,null,null,null,null,"ha",null,null,1000,null,null,null,null,null,null,null,{"$f":"ROUND(AA80*AE80*2,1)/2","v":0},null,null,null,null,null,null,null,{"$f":"ROUND(AM80*AA80*2,1)/2","v":0}]
[]
[null,"Jungwuchspflege",null,null,null,null,null,null,null,null,null,null,null,null,null,null,null,null,null,null,null,null,null,"ha",null,null,2000,null,null,null,null,null,null,null,{"$f":"ROUND(AA82*AE82*2,1)/2","v":0},null,null,null,null,null,null,null,{"$f":"ROUND(AM82*AA82*2,1)/2","v":0}]
[]
[null,"Dickungspflege",null,null,null,null,"o",null,"Stangenholzpflege",null,null,null,null,null,"o",null,null,null,null,null,null,null,null,"ha",null,null,2000,null,null,null,null,null,null,null,{"$f":"ROUND(AA84*AE84*2,1)/2","v":0},null,null,null,null,null,null,null,{"$f":"ROUND(AM84*AA84*2,1)/2","v":0}]
[]
[null,"Pflege stufige Bestände",null,null,null,null,null,null,null,null,null,null,null,null,null,null,null,null,null,null,null,null,null,"ha",null,null,2000,null,null,null,null,null,null,null,{"$f":"ROUND(AA86*AE86*2,1)/2","v":0},null,null,null,null,null,null,null,{"$f":"ROUND(AM86*AA86*2,1)/2","v":0}]
[]
[null,"Schlagpflege (max. 50 % der Schlagfläche)",null,null,null,null,null,null,null,null,null,null,null,null,null,null,null,null,null,null,null,null,null,"ha",null,null,2000,null,null,null,null,null,null,null,{"$f":"ROUND(AA88*AE88*2,1)/2","v":0},null,null,null,null,null,null,null,{"$f":"ROUND(AM88*AA88*2,1)/2","v":0}]
[]
[null,"Ergänzungspflanzungen",null,null,null,null,null,null,null,null,null,null,null,null,null,null,null,null,null,null,null,null,null,"ha",null,null,4000,null,null,null,null,null,null,null,{"$f":"ROUND(AA90*AE90*2,1)/2","v":0},null,null,null,null,null,null,null,{"$f":"ROUND(AM90*AA90*2,1)/2","v":0}]
[]
[null,"Stumpen (1.5 a pro Baum)",null,null,null,null,null,null,null,null,null,null,null,null,null,null,null,null,null,null,null,null,null,"ha",null,null,2000,null,null,null,null,null,null,null,{"$f":"ROUND(AA92*AE92*2,1)/2","v":0},null,null,null,null,null,null,null,{"$f":"ROUND(AM92*AA92*2,1)/2","v":0}]
[]
[null,"Total",null,null,null,null,null,null,null,null,null,null,null,null,null,null,null,null,null,null,null,null,null,"ha",null,null,null,null,null,null,{"$f":"SUM(AE54:AH67,AE70:AH75,AE78:AH93)","v":0},null,null,null,{"$f":"SUM(AI54:AL67,AI70:AL75,AI78:AL93)","v":0},null,null,null,{"$f":"SUM(AM54:AP67,AM70:AP75,AM78:AP93)","v":0},null,null,null,{"$f":"SUM(AQ54:AT67,AQ70:AT75,AQ78:AT93)","v":0}]
[]
[]
[]
[5,"Trägerschaft: Eingabe des Gesuchs und generelle Bedingungen für die Ausrichtung der Beiträge"]
[]
[null,"Die Trägerschaft beantragt die Subventionierung der projektierten Arbeiten gemäss Ziffer 3 und 4"]
[null,null,null,null,null,null,null,null,null,null,null,null,null,null,null,null,null,null,null,null,null,null,null,null,null,null,null,null,null,null,null,null,null,null,"Ort",null,null,null,null,null,"Datum"]
[]
[null,"1. Die Weisungen des AWN müssen befolgt werden.\n2. Die Massnahmen müssen fachgerecht ausgeführt werden.\n3. Die Zielsetzung darf durch nachteilige Nutzung (Waldweide usw.) und überhöhte Wildbestände nicht gefährdet werden.\n4. Die Richtlinien und Sicherheitsbestimmungen der SUVA, EKAS und BAZL sind einzuhalten.\n5. Beiträge werden nur ausgerichtet, wenn sich der Waldbesitzer mit seiner gesamten, BHFF-pflichtigen Nutzung am Fonds beteiligt.\n    (Vgl. KS 1.4/7)"]
[]
[]
[]
[null,null,null,null,null,null,null,null,null,null,null,null,null,null,null,null,null,null,null,null,null,null,null,null,null,null,null,null,null,null,null,null,null,null,"Die Trägerschaft"]
[]
[]
[]
[]
[]
[]
[]
[6,"Der Revierförster",null,null,null,null,null,null,null,null,null,null,null,null,null,null,null,null,null,null,null,null,null,null,null,null,null,null,null,null,null,null,null,null,"Datum"]
[]
[null,"Die Zustimmung zum Gesuch stellt keine Beitragszusicherung dar.\nDiese erfolgt erst durch die Genehmigung der Abrechnung und der Ausgabenbewilligung.\nDie Auszahlung der Beiträge erfolgt nach Massgabe der zur Verfügung stehenden Kredite.",null,null,null,null,null,null,null,null,null,null,null,null,null,null,null,null,null,null,null,null,null,null,null,null,null,null,null,null,null,null,null,null,"Gesuch gültig bis: (max. Ende 2024)"]
[]
[]
[]
[]
[]
[null,"Ort",null,null,null,null,null,null,null,null,null,"Datum",null,null,null,null,null,null,null,null,null,"Der Revierförster",null,null,null,null,null,null,null,null,null,null,null,null,"Bemerkungen"]
[]
[]
[null,null,null,null,null,null,null,null,null,null,null,null,null,null,null,null,null,null,null,null,null,null,null,null,null,null,null,null,null,null,null,null,null,null,"siehe Beilage"]
[]
[]
[]
[7,"Ausführungsbestätigung des Revierförsters"]
[]
[null,"Die Arbeiten sind fachgerecht ausgeführt und die  Beitragsberechtigung wird anerkannt."]
[]
[null,"Ort",null,null,null,null,null,null,null,null,null,"Datum",null,null,null,null,null,null,null,null,null,"Der Revierförster",null,null,null,null,null,null,null,null,null,null,null,null,"Bemerkungen"]
[]
[]
[null,null,null,null,null,null,null,null,null,null,null,null,null,null,null,null,null,null,null,null,null,null,null,null,null,null,null,null,null,null,null,null,null,null,"siehe Beilage"]
[]
[]
[]
[8,"Genehmigung der Abrechnung und Ausgabenbewilligung",null,null,null,null,null,null,null,null,null,null,null,null,null,null,null,null,null,null,null,null,null,null,null,null,null,null,null,null,null,9,"Kontrolle WA"]
[]
[null,null,null,null,null,null,null,null,null,null,null,null,null,null,null,null,null,null,null,null,null,null,null,null,null,null,null,null,null,null,null,"Fachvisum"]
[null,"Eingriffsfläche in ha",null,null,null,null,null,null,null,null,null,null,null,null,null,null,"Total CHF"]
[]
[null,{"$f":"AM94","v":0},null,null,null,null,null,null,null,null,null,null,"ha",null,null,null,{"$f":"AQ94","v":0},null,null,null,null,null,null,null,null,"CHF",null,null,null,null,null,null,null,null,null,null,"Datum",null,null,null,null,"Visum"]
[]
[null,null,null,null,null,null,null,null,null,null,null,null,null,null,null,null,null,null,null,null,null,null,null,null,null,null,null,null,null,null,null,"Sachbearbeiter  "]
[null,"Ort",null,null,null,null,null,null,null,null,null,"Datum",null,null,null,null,null,null,null,null,null,"Die Waldabteilung"]
[]
[null,null,null,null,null,null,null,null,null,null,null,null,null,null,null,null,null,null,null,null,null,null,null,null,null,null,null,null,null,null,null,"Beleg-Nr."]
[]
[]
[]
[]
[null,"Beilagen für WA: ",null,null,null,null,null,null,"- Beilage zum Einfachen Projekt und NaiS-Formular (nur im GSW)\n- Beilage 5 / - Ausführungsplan 1:5000",null,null,null,null,null,null,null,null,null,null,null,null,null,null,null,null,null,null,null,null,null,"Kopie WA an: ",null,null,null,null,"- Trägerschaft\n- Revierförster"]
[]
[null,"- Einzahlungsschein"]